fUSD/lending_fUSD_20251212
["ID","MTS","AMOUNT","RATE_DAILY","PERIOD"]
[398342612,1765538102349,-616.65,0.00041095,30]
[398342613,1765538102359,-3185.29,0.00041095,30]
[398342614,1765538102368,-1899.74,0.00041095,30]
[398342615,1765538102377,-767.47,0.00041095,30]
[398342616,1765538102387,-3636.79,0.00041095,30]
[398342617,1765538102396,-1218.06,0.00041095,30]
[398342618,1765538102405,-1283.24,0.00041095,30]
[398342619,1765538102414,-500.0,0.00041095,30]
[398342620,1765538102423,-500.0,0.00041095,30]
[398342621,1765538102435,-3032.18,0.00041095,30]
[398342622,1765538102444,-500.0,0.00041095,30]
[398342623,1765538102454,-616.0,0.00041095,30]
[398342624,1765538102463,-1329.42,0.00041095,30]
[398342625,1765538102472,-500.0,0.00041095,30]
[398342626,1765538102481,-638.79,0.00041095,30]
[398342627,1765538102490,-500.0,0.00041095,30]
[398342628,1765538102499,-950.53,0.00041095,30]
[398342629,1765538102508,-664.16,0.00041095,30]
[398342630,1765538102518,-1066.97,0.00041095,30]
[398342631,1765538102528,-599.13,0.00041095,30]
[398342632,1765538102537,-500.0,0.00041095,30]
[398342633,1765538102546,-1433.51,0.00041095,30]
[398342634,1765538102555,-6840.01,0.00041095,30]
[398342635,1765538102564,-2849.13,0.00041095,30]
[398342636,1765538102573,-500.0,0.00041095,30]
[398342637,1765538102582,-642.56,0.00041095,30]
[398342638,1765538102591,-500.0,0.00041095,30]
[398342639,1765538102600,-2147.05,0.00041095,30]
[398342640,1765538102610,-6708.51,0.00041095,30]
[398342641,1765538102619,-500.0,0.00041095,30]
[398342642,1765538102628,-1746.8,0.00041095,30]
[398342643,1765538102637,-500.0,0.00041095,30]
[398342644,1765538102647,-1135.94,0.00041095,30]
[398342645,1765538102656,-1293.36,0.00041095,30]
[398342646,1765538102665,-500.0,0.00041095,30]
[398342647,1765538102675,-521.15971538,0.00041095,30]
[398342648,1765538102684,-500.0,0.00041095,30]
[398342649,1765538102693,-1510.63,0.00041095,30]
[398342650,1765538102703,-500.0,0.00041095,30]
[398342651,1765538102712,-911.19,0.00041095,30]
[398342652,1765538102721,-2130.63,0.00041095,30]
[398342653,1765538102730,-500.0,0.00041095,30]
[398342654,1765538102739,-1011.94,0.00041095,30]
[398342655,1765538102749,-1929.57,0.00041095,30]
[398342656,1765538102758,-657.48,0.00041095,30]
[398342657,1765538102767,-1120.09,0.00041095,30]
[398342658,1765538102777,-732.14,0.00041095,30]
[398342659,1765538102786,-4030.69,0.00041095,30]
[398342660,1765538102796,-500.0,0.00041095,30]
[398342661,1765538102805,-995.54,0.00041095,30]
[398342662,1765538102814,-1083.81,0.00041095,30]
[398342663,1765538102824,-726.94,0.00041095,30]
[398342664,1765538102834,-3238.19,0.00041095,30]
[398342665,1765538102845,-2367.27,0.00041095,30]
[398342666,1765538102854,-608.27,0.00041095,30]
[398342667,1765538102864,-500.0,0.00041095,30]
[398342668,1765538102873,-500.0,0.00041095,30]
[398342669,1765538102885,-583.32,0.00041095,30]
[398342670,1765538102894,-500.0,0.00041095,30]
[398342671,1765538102903,-625.74,0.00041095,30]
[398342672,1765538102912,-500.0,0.00041095,30]
[398342673,1765538102921,-500.0,0.00041095,30]
[398342674,1765538102930,-2843.71,0.00041095,30]
[398342675,1765538102939,-1329.63,0.00041095,30]
[398342676,1765538102948,-500.0,0.00041095,30]
[398342677,1765538102957,-500.0,0.00041095,30]
[398342678,1765538102966,-605.17,0.00041095,30]
[398342679,1765538102975,-610.47,0.00041095,30]
[398342680,1765538102985,-677.17,0.00041095,30]
[398342681,1765538102994,-1219.89,0.00041095,30]
[398342682,1765538103003,-1003.5,0.00041095,30]
[398342683,1765538103013,-658.88,0.00041095,30]
[398342684,1765538103022,-621.26,0.00041095,30]
[398342685,1765538103032,-188.40918727,0.00041095,30]
[398342686,1765538103041,-500.0,0.00041095,30]
[398342687,1765538103050,-2089.28,0.00041095,30]
[398342688,1765538103060,-500.0,0.00041095,30]
[398342689,1765538103069,-500.0,0.00041095,30]
[398342690,1765538103079,-777.33,0.00041095,30]
[398342691,1765538103089,-506.96,0.00041095,30]
[398342692,1765538103098,-600.44,0.00041095,30]
[398342693,1765538103108,-557.42,0.00041095,30]
[398342694,1765538103118,-610.54,0.00041095,30]
[398342695,1765538103127,-500.0,0.00041095,30]
[398342696,1765538103136,-500.0,0.00041095,30]
[398342697,1765538103146,-516.74,0.00041095,30]
[398342698,1765538103155,-500.0,0.00041095,15]
[398342699,1765538103165,-759.14,0.00041095,30]
[398342700,1765538103175,-571.0,0.00041095,30]
[398342701,1765538103185,-1161.86,0.00041095,30]
[398342702,1765538103194,-588.85,0.00041095,30]
[398342703,1765538103205,-1044.6,0.00041095,30]
[398342704,1765538103214,-2199.62,0.00041095,30]
[398342705,1765538103224,-503.79,0.00041095,30]
[398342706,1765538103233,-500.0,0.00041095,30]
[398342707,1765538103243,-500.0,0.00041095,30]
[398342708,1765538103253,-500.0,0.00041095,30]
[398342709,1765538103263,-500.0,0.00041095,30]
[398342710,1765538103273,-500.0,0.00041095,30]
[398342711,1765538103283,-578.6,0.00041095,30]
[398342712,1765538103292,-809.01,0.00041095,30]
[398342713,1765538103302,-500.0,0.00041095,30]
[398342714,1765538103311,-719.27,0.00041095,30]
[398342715,1765538103321,-2620.34,0.00041095,30]
[398342716,1765538103330,-1731.68,0.00041095,30]
[398342717,1765538103340,-517.1,0.00041095,30]
[398342718,1765538103350,-2018.77,0.00041095,30]
[398342719,1765538103359,-822.61,0.00041095,30]
[398342720,1765538103369,-500.0,0.00041095,30]
[398342721,1765538103379,-511.8,0.00041095,30]
[398342722,1765538103388,-1929.49,0.00041095,30]
[398342723,1765538103398,-1245.76,0.00041095,30]
[398342724,1765538103407,-500.0,0.00041095,30]
[398342725,1765538103417,-629.76,0.00041095,30]
[398342726,1765538103426,-500.0,0.00041095,30]
[398342727,1765538103435,-2747.32,0.00041095,30]
[398342728,1765538103444,-504.87,0.00041095,30]
[398342729,1765538103453,-3082.74,0.00041095,30]
[398342730,1765538103463,-992.27,0.00041095,30]
[398342731,1765538103472,-1765.66,0.00041095,30]
[398342732,1765538103481,-810.69,0.00041095,30]
[398342733,1765538103490,-669.73,0.00041095,30]
[398342734,1765538103499,-1342.66,0.00041095,30]
[398342735,1765538103508,-648.8,0.00041095,30]
[398342736,1765538103517,-682.03,0.00041095,30]
[398342737,1765538103527,-1864.3,0.00041095,30]
[398342738,1765538103536,-500.0,0.00041095,30]
[398342739,1765538103545,-689.18,0.00041095,30]
[398342740,1765538103555,-598.31,0.00041095,30]
[398342741,1765538103564,-792.27,0.00041095,30]
[398342742,1765538103573,-2535.84,0.00041095,30]
[398342743,1765538103583,-500.0,0.00041095,30]
[398342744,1765538103593,-512.42583033,0.00041095,30]
[398342745,1765538103603,-1454.84,0.00041095,30]
[398342746,1765538103612,-500.0,0.00041095,30]
[398342747,1765538103622,-836.48,0.00041095,30]
[398342748,1765538103631,-630.54,0.00041095,30]
[398342749,1765538103641,-542.7,0.00041095,30]
[398342750,1765538103651,-500.0,0.00041095,30]
[398342751,1765538103663,-625.15,0.00041095,30]
[398342752,1765538103672,-2978.69,0.00041095,30]
[398342753,1765538103681,-500.0,0.00041095,30]
[398342754,1765538103691,-566.99,0.00041095,30]
[398342755,1765538103880,-501.3,0.00041095,30]
[398342756,1765538103896,-1577.35,0.00041095,30]
[398342757,1765538103906,-716.61,0.00041095,30]
[398342758,1765538103918,-2248.13,0.00041095,30]
[398342759,1765538103927,-556.61,0.00041095,30]
[398342760,1765538103937,-500.0,0.00041095,30]
[398342761,1765538103946,-1673.77,0.00041095,30]
[398342762,1765538103958,-2331.84,0.00041095,30]
[398342763,1765538103968,-1028.79,0.00041095,30]
[398342764,1765538103977,-2147.02,0.00041095,30]
[398342765,1765538103987,-1527.47,0.00041095,30]
[398342766,1765538103996,-500.0,0.00041095,30]
[398342767,1765538104006,-500.28,0.00041095,30]
[398342768,1765538104016,-1715.19,0.00041095,30]
[398342769,1765538104026,-594.01,0.00041095,30]
[398342770,1765538104035,-1740.0,0.00041095,30]
[398342771,1765538104045,-567.29,0.00041095,30]
[398342772,1765538104055,-500.0,0.00041095,30]
[398342773,1765538104065,-633.47,0.00041095,30]
[398342774,1765538104075,-2330.09,0.00041095,30]
[398342775,1765538104084,-527.63,0.00041095,30]
[398342776,1765538104094,-500.0,0.00041095,30]
[398342777,1765538104105,-563.14,0.00041095,30]
[398342778,1765538104115,-1444.41,0.00041095,30]
[398342779,1765538104125,-588.23,0.00041095,30]
[398342780,1765538104135,-500.0,0.00041095,30]
[398342781,1765538104145,-500.0,0.00041095,30]
[398342782,1765538104155,-1747.95,0.00041095,30]
[398342783,1765538104165,-763.9,0.00041095,30]
[398342784,1765538104176,-500.0,0.00041095,30]
[398342785,1765538104185,-818.9,0.00041095,30]
[398342786,1765538104195,-972.17,0.00041095,30]
[398342787,1765538104205,-573.6,0.00041095,30]
[398342788,1765538104215,-556.13,0.00041095,30]
[398342789,1765538104224,-666.96,0.00041095,30]
[398342790,1765538104234,-500.0,0.00041095,30]
[398342791,1765538104244,-500.0,0.00041095,30]
[398342792,1765538104254,-1283.05,0.00041095,30]
[398342793,1765538104264,-798.2,0.00041095,30]
[398342794,1765538104274,-6586.39,0.00041095,30]
[398342795,1765538104284,-989.92,0.00041095,30]
[398342796,1765538104294,-500.0,0.00041095,30]
[398342797,1765538104303,-609.03471325,0.00041095,30]
[398342798,1765538104314,-502.68,0.00041095,30]
[398342799,1765538104323,-500.0,0.00041095,30]
[398342800,1765538104333,-500.0,0.00041095,30]
[398342801,1765538104343,-500.0,0.00041095,30]
[398342802,1765538104353,-500.0,0.00041095,30]
[398342803,1765538104363,-709.01,0.00041095,30]
[398342804,1765538104372,-500.0,0.00041095,30]
[398342805,1765538104382,-530.78662903,0.00041095,30]
[398342806,1765538104392,-1180.74,0.00041095,30]
[398342807,1765538104402,-529.51,0.00041095,30]
[398342808,1765538104411,-589.52,0.00041095,30]
[398342809,1765538104421,-500.0,0.00041095,30]
[398342810,1765538104431,-500.0,0.00041095,30]
[398342811,1765538104441,-500.0,0.00041095,30]
[398342812,1765538104451,-720.32,0.00041095,30]
[398342813,1765538104461,-509.99,0.00041095,30]
[398342814,1765538104471,-500.0,0.00041095,30]
[398342815,1765538104481,-752.38,0.00041095,30]
[398342816,1765538104490,-500.0,0.00041095,30]
[398342817,1765538104500,-500.0,0.00041095,30]
[398342818,1765538104510,-899.81,0.00041095,30]
[398342819,1765538104520,-500.0,0.00041095,30]
[398342820,1765538104529,-634.12,0.00041095,30]
[398342821,1765538104539,-1738.8,0.00041095,30]
[398342822,1765538104548,-500.0,0.00041095,30]
[398342823,1765538104558,-622.13,0.00041095,30]
[398342824,1765538104567,-500.0,0.00041095,30]
[398342825,1765538104577,-10008.33,0.00041095,30]
[398342826,1765538104587,-1816.12,0.00041095,30]
[398342827,1765538104596,-1222.19,0.00041095,30]
[398342828,1765538104606,-500.0,0.00041095,30]
[398342829,1765538104616,-506.67,0.00041095,30]
[398342830,1765538104626,-614.15,0.00041095,30]
[398342831,1765538104636,-853.5,0.00041095,30]
[398342832,1765538104646,-867.61,0.00041095,30]
[398342833,1765538104656,-500.0,0.00041095,30]
[398342834,1765538104665,-1730.62,0.00041095,30]
[398342835,1765538104675,-500.0,0.00041095,30]
[398342836,1765538104685,-500.0,0.00041095,30]
[398342837,1765538104694,-642.79,0.00041095,30]
[398342838,1765538104704,-2044.69,0.00041095,30]
[398342839,1765538104714,-500.0,0.00041095,30]
[398342840,1765538104723,-500.0,0.00041095,30]
[398342841,1765538104733,-5043.62,0.00041095,30]
[398342842,1765538104743,-1215.55,0.00041095,30]
[398342843,1765538104754,-500.0,0.00041095,30]
[398342844,1765538104763,-500.0,0.00041095,30]
[398342845,1765538104773,-500.0,0.00041095,30]
[398342846,1765538104783,-1545.49,0.00041095,30]
[398342847,1765538104793,-660.88,0.00041095,30]
[398342848,1765538104802,-1589.48,0.00041095,30]
[398342849,1765538104811,-628.02,0.00041095,30]
[398342850,1765538104821,-626.53,0.00041095,30]
[398342851,1765538104831,-602.06,0.00041095,30]
[398342852,1765538104840,-840.42,0.00041095,30]
[398342853,1765538104849,-505.82078613,0.00041095,30]
[398342854,1765538104859,-500.0,0.00041095,30]
[398342855,1765538104870,-699.47,0.00041095,30]
[398342856,1765538104883,-905.19,0.00041095,30]
[398342857,1765538104893,-752.57,0.00041095,30]
[398342858,1765538104902,-2585.93,0.00041095,30]
[398342859,1765538104912,-789.34,0.00041095,30]
[398342860,1765538104922,-3440.78,0.00041095,30]
[398342861,1765538104932,-563.79,0.00041095,30]
[398342862,1765538104941,-500.0,0.00041095,30]
[398342863,1765538104951,-500.0,0.00041095,30]
[398342864,1765538104960,-571.37,0.00041095,30]
[398342865,1765538104970,-500.54,0.00041095,30]
[398342866,1765538104981,-500.0,0.00041095,30]
[398342867,1765538104991,-500.0,0.00041095,30]
[398342868,1765538105001,-509.62,0.00041095,30]
[398342869,1765538105010,-669.04,0.00041095,30]
[398342870,1765538105020,-3771.23,0.00041095,30]
[398342871,1765538105030,-500.0,0.00041095,30]
[398342872,1765538105040,-813.18,0.00041095,30]
[398342873,1765538105050,-500.0,0.00041095,30]
[398342874,1765538105060,-1179.73,0.00041095,30]
[398342875,1765538105069,-500.0,0.00041095,30]
[398342876,1765538105079,-500.0,0.00041095,30]
[398342877,1765538105088,-1235.8,0.00041095,30]
[398342878,1765538105099,-1360.54,0.00041095,30]
[398342879,1765538105109,-604.12,0.00041095,30]
[398342880,1765538105120,-500.0,0.00041095,30]
[398342881,1765538105130,-500.0,0.00041095,30]
[398342882,1765538105140,-1586.65,0.00041095,30]
[398342883,1765538105150,-500.0,0.00041095,2]
[398342884,1765538105160,-500.0,0.00041095,30]
[398342885,1765538105170,-972.77,0.00041095,30]
[398342886,1765538105180,-500.0,0.00041095,30]
[398342887,1765538105190,-500.0,0.00041095,30]
[398342888,1765538105200,-500.0,0.00041095,30]
[398342889,1765538105210,-500.0,0.00041095,30]
[398342890,1765538105220,-4363.05,0.00041095,30]
[398342891,1765538105230,-731.82,0.00041095,30]
[398342892,1765538105239,-1418.58,0.00041095,30]
[398342893,1765538105249,-1625.02,0.00041095,30]
[398342894,1765538105259,-500.0,0.00041095,30]
[398342895,1765538105269,-500.0,0.00041095,30]
[398342896,1765538105279,-500.0,0.00041095,30]
[398342897,1765538105289,-500.0,0.00041095,30]
[398342898,1765538105299,-500.0,0.00041095,30]
[398342899,1765538105309,-805.19,0.00041095,30]
[398342900,1765538105319,-500.0,0.00041095,30]
[398342901,1765538105329,-1679.93,0.00041095,30]
[398342902,1765538105339,-500.0,0.00041095,30]
[398342903,1765538105350,-11739.26,0.00041095,30]
[398342904,1765538105360,-510.13,0.00041095,30]
[398342905,1765538105369,-500.0,0.00041095,30]
[398342906,1765538105379,-1704.19,0.00041095,30]
[398342907,1765538105389,-878.65,0.00041095,30]
[398342908,1765538105399,-619.07,0.00041095,30]
[398342909,1765538105408,-2892.66,0.00041095,30]
[398342910,1765538105419,-500.0,0.00041095,30]
[398342911,1765538105428,-500.0,0.00041095,30]
[398342912,1765538105438,-500.0,0.00041095,30]
[398342913,1765538105447,-1899.29,0.00041095,30]
[398342914,1765538105457,-500.0,0.00041095,30]
[398342915,1765538105467,-1019.28,0.00041095,30]
[398342916,1765538105477,-500.0,0.00041095,30]
[398342917,1765538105486,-500.0,0.00041095,30]
[398342918,1765538105496,-1418.57,0.00041095,30]
[398342919,1765538105506,-500.0,0.00041095,30]
[398342920,1765538105516,-500.0,0.00041095,30]
[398342921,1765538105525,-736.31,0.00041095,30]
[398342922,1765538105535,-500.0,0.00041095,30]
[398342923,1765538105544,-500.0,0.00041095,30]
[398342924,1765538105554,-803.38,0.00041095,30]
[398342925,1765538105564,-500.0,0.00041095,30]
[398342926,1765538105575,-522.15,0.00041095,30]
[398342927,1765538105585,-500.0,0.00041095,30]
[398342928,1765538105595,-500.0,0.00041095,30]
[398342929,1765538105605,-500.0,0.00041095,30]
[398342930,1765538105614,-1055.47,0.00041095,30]
[398342931,1765538105624,-694.39,0.00041095,30]
[398342932,1765538105634,-1480.3,0.00041095,30]
[398342933,1765538105643,-1529.14,0.00041095,30]
[398342934,1765538105653,-1887.69,0.00041095,30]
[398342935,1765538105663,-500.0,0.00041095,30]
[398342936,1765538105673,-1537.38,0.00041095,30]
[398342937,1765538105683,-814.49,0.00041095,30]
[398342938,1765538105692,-500.0,0.00041095,30]
[398342939,1765538105702,-500.0,0.00041095,30]
[398342940,1765538105712,-878.0,0.00041095,30]
[398342941,1765538105722,-542.52,0.00041095,30]
[398342942,1765538105731,-500.0,0.00041095,30]
[398342943,1765538105741,-500.0,0.00041095,30]
[398342944,1765538105751,-1609.53,0.00041095,30]
[398342945,1765538105760,-1220.84,0.00041095,30]
[398342946,1765538105769,-1987.44,0.00041095,30]
[398342947,1765538105779,-500.0,0.00041095,30]
[398342948,1765538105788,-994.63,0.00041095,30]
[398342949,1765538105797,-1330.17,0.00041095,30]
[398342951,1765538105806,-1382.15,0.00041095,30]
[398342952,1765538105816,-211.58402715,0.00041095,30]
[398342953,1765538105825,-500.0,0.00041095,30]
[398342955,1765538105835,-1159.62,0.00041095,30]
[398342956,1765538105844,-1136.89,0.00041095,30]
[398342957,1765538105854,-556.58,0.00041095,30]
[398342958,1765538105862,-9826.53,0.00041095,30]
[398342959,1765538105872,-500.0,0.00041095,30]
[398342960,1765538105885,-972.17,0.00041095,30]
[398342961,1765538105899,-500.0,0.00041095,30]
[398342962,1765538105909,-731.37,0.00041095,30]
[398342963,1765538105919,-1614.96,0.00041095,30]
[398342964,1765538105929,-500.0,0.00041095,30]
[398342965,1765538105938,-4738.09,0.00041095,30]
[398342966,1765538105948,-1327.17,0.00041095,30]
[398342967,1765538105958,-500.0,0.00041095,30]
[398342968,1765538105969,-3631.76,0.00041095,30]
[398342969,1765538105978,-500.0,0.00041095,30]
[398342970,1765538105988,-500.0,0.00041095,30]
[398342971,1765538105998,-500.0,0.00041095,30]
[398342972,1765538106007,-963.98,0.00041095,30]
[398342973,1765538106017,-634.95,0.00041095,30]
[398342974,1765538106027,-3329.8,0.00041095,30]
[398342975,1765538106037,-183.0734451,0.00041095,30]
[398342976,1765538106046,-500.0,0.00041095,30]
[398342977,1765538106473,-1124.07,0.00041095,30]
[398342978,1765538106484,-500.0,0.00041095,30]
[398342979,1765538106495,-876.92,0.00041095,30]
[398342980,1765538106506,-500.0,0.00041095,30]
[398342981,1765538106516,-500.0,0.00041095,30]
[398342982,1765538106526,-500.0,0.00041095,30]
[398342983,1765538106536,-258.71339916,0.00041095,30]
[398342984,1765538106546,-500.0,0.00041095,30]
[398342985,1765538106558,-500.0,0.00041095,30]
[398342986,1765538106568,-500.0,0.00041095,30]
[398342987,1765538106578,-613.85,0.00041095,30]
[398342988,1765538106587,-705.22,0.00041095,30]
[398342989,1765538106598,-500.0,0.00041095,30]
[398342990,1765538106608,-601.44,0.00041095,30]
[398342991,1765538106617,-680.86,0.00041095,30]
[398342992,1765538106627,-378.10687362,0.00041095,30]
[398342993,1765538106637,-1255.36,0.00041095,30]
[398342994,1765538106647,-500.0,0.00041095,30]
[398342995,1765538106657,-500.0,0.00041095,30]
[398342996,1765538106667,-757.92,0.00041095,30]
[398342997,1765538106676,-500.0,0.00041095,30]
[398342998,1765538106686,-976.99,0.00041095,30]
[398342999,1765538106696,-681.9,0.00041095,30]
[398343000,1765538106706,-500.0,0.00041095,30]
[398343001,1765538106716,-766.68,0.00041095,30]
[398343002,1765538106725,-500.0,0.00041095,30]
[398343003,1765538106735,-500.0,0.00041095,30]
[398343004,1765538106744,-500.0,0.00041095,30]
[398343005,1765538106754,-820.89,0.00041095,30]
[398343006,1765538106763,-1425.77,0.00041095,30]
[398343007,1765538106773,-2237.4,0.00041095,30]
[398343008,1765538106783,-673.29,0.00041095,30]
[398343009,1765538106792,-574.67,0.00041095,30]
[398343010,1765538106802,-500.0,0.00041095,30]
[398343011,1765538106812,-516.97195309,0.00041095,30]
[398343012,1765538106821,-1020.61,0.00041095,30]
[398343013,1765538106831,-505.06604455,0.00041095,30]
[398343014,1765538106840,-749.57,0.00041095,30]
[398343015,1765538106851,-500.0,0.00041095,30]
[398343016,1765538106861,-558.5,0.00041095,30]
[398343017,1765538106870,-500.0,0.00041095,30]
[398343018,1765538106885,-500.0,0.00041095,30]
[398343019,1765538106894,-1224.23,0.00041095,30]
[398343020,1765538106904,-628.4,0.00041095,30]
[398343021,1765538106915,-500.0,0.00041095,30]
[398343022,1765538106925,-1487.24,0.00041095,30]
[398343023,1765538106935,-500.0,0.00041095,30]
[398343024,1765538106944,-500.0,0.00041095,30]
[398343025,1765538106954,-500.0,0.00041095,30]
[398343026,1765538106964,-500.0,0.00041095,30]
[398343027,1765538106974,-643.83,0.00041095,30]
[398343028,1765538106984,-1267.76,0.00041095,30]
[398343029,1765538107001,-500.0,0.00041095,30]
[398343030,1765538107011,-554.79,0.00041095,30]
[398343031,1765538107022,-500.13,0.00041095,30]
[398343032,1765538107032,-543.72,0.00041095,30]
[398343033,1765538107041,-500.0,0.00041095,30]
[398343034,1765538107051,-1502.85,0.00041095,30]
[398343035,1765538107061,-901.37,0.00041095,30]
[398343036,1765538107071,-865.46,0.00041095,30]
[398343037,1765538107081,-1483.56,0.00041095,30]
[398343038,1765538107090,-500.0,0.00041095,30]
[398343039,1765538107100,-500.0,0.00041095,30]
[398343040,1765538107109,-531.6749849,0.00041095,30]
[398343041,1765538107119,-2056.86,0.00041095,30]
[398343042,1765538107128,-500.0,0.00041095,30]
[398343043,1765538107138,-598.84,0.00041095,30]
[398343044,1765538107147,-500.0,0.00041095,30]
[398343045,1765538107156,-500.0,0.00041095,30]
[398343046,1765538107166,-418.22716707,0.00041095,30]
[398343047,1765538107176,-500.0,0.00041095,30]
[398343048,1765538107186,-500.0,0.00041095,30]
[398343049,1765538107195,-500.0,0.00041095,30]
[398343050,1765538107205,-500.0,0.00041095,30]
[398343051,1765538107215,-500.0,0.00041095,120]
[398343052,1765538107224,-517.5887878,0.00041095,30]
[398343053,1765538107233,-2287.8,0.00041095,30]
[398343054,1765538107243,-500.0,0.00041095,30]
[398343055,1765538107252,-500.0,0.00041095,30]
[398343056,1765538107262,-500.0,0.00041095,30]
[398343057,1765538107271,-555.94,0.00041095,30]
[398343058,1765538107280,-500.0,0.00041095,30]
[398343059,1765538107290,-500.0,0.00041095,30]
[398343060,1765538107300,-327.92318143,0.00041095,30]
[398343061,1765538107309,-431.73000596,0.00041095,30]
[398343062,1765538107319,-868.9,0.00041095,30]
[398343063,1765538107329,-671.73,0.00041095,30]
[398343064,1765538107339,-500.0,0.00041095,30]
[398343065,1765538107349,-2439.55,0.00041095,30]
[398343066,1765538107358,-2828.46,0.00041095,120]
[398343067,1765538107368,-500.0,0.00041095,120]
[398343068,1765538107378,-3289.05,0.00041095,30]
[398343069,1765538107387,-5959.38536385,0.00041095,30]
[398343070,1765538107397,-1876.03,0.00041095,30]
[398343071,1765538107406,-500.0,0.00041095,120]
[398343072,1765538107416,-500.0,0.00041095,120]
[398343073,1765538107426,-500.0,0.00041095,120]
[398343074,1765538107436,-500.0,0.00041095,30]
[398343075,1765538107445,-500.0,0.00041095,30]
[398343076,1765538107454,-500.0,0.00041095,120]
[398343077,1765538107463,-500.0,0.00041095,120]
[398343078,1765538107472,-500.0,0.00041095,120]
[398343079,1765538107482,-405.3919305,0.00041095,2]
[398343080,1765538107492,-932.972515,0.00041095,30]
[398343081,1765538107501,-168.15043,0.00041095,30]
[398343082,1765538107511,-1953.93417,0.00041095,30]
[398343083,1765538107520,-1767.482813,0.00041095,30]
[398343084,1765538107530,-171.577909,0.00041095,30]
[398343085,1765538107539,-1310.696547,0.00041095,30]
[398343086,1765538107549,-1000.0,0.00041095,120]
[398343087,1765538107558,-1014.43,0.00041095,30]
[398343088,1765538107568,-500.0,0.00041095,30]
[398343089,1765538107577,-661.21592807,0.00041095,30]
[398343090,1765538107587,-1000.0,0.00041095,30]
[398343091,1765538107597,-352.09,0.00041095,2]
[398343092,1765538107607,-645.54,0.00041095,30]
[398343093,1765538107616,-500.0,0.00041095,30]
[398343094,1765538107626,-523.99,0.00041095,120]
[398343095,1765538107635,-500.0,0.00041095,2]
[398343096,1765538107644,-1994.45,0.00041095,30]
[398343097,1765538107654,-2057.12,0.00041095,30]
[398343098,1765538107663,-500.0,0.00041095,2]
[398343099,1765538107673,-500.0,0.00041095,120]
[398343100,1765538107682,-628.36,0.00041096,120]
[398343101,1765538107691,-150.0,0.00041096,10]
[398343102,1765538107700,-500.0,0.00041096,10]
[398343103,1765538107709,-500.0,0.00041096,34]
[398343104,1765538107719,-150.0,0.00041096,10]
[398343105,1765538107728,-252.6,0.00041096,120]
[398343106,1765538107738,-1273.434137,0.00041096,120]
[398343107,1765538107747,-1273.434137,0.00041096,120]
[398343108,1765538107757,-1273.434137,0.00041096,120]
[398343109,1765538107766,-1273.434137,0.00041096,120]
[398343110,1765538107775,-1273.434137,0.00041096,120]
[398343111,1765538107785,-1273.434137,0.00041096,120]
[398343112,1765538107795,-1273.434137,0.00041096,120]
[398343113,1765538107804,-1273.434137,0.00041096,120]